{"text_format":"3","workbook":"xlsx","n_sheets":5,"sheets":["Cat 1 - Forward Price List","Cat 2 - Rear Price List","Cat 3 - Booster Price List","Cat 4 - Special Price List","Cat 5 - Optional Price List"],"read":"whole","date_system":"1900"}

{"sheet":"Cat 1 - Forward Price List","index":0,"n_rows":14,"n_cols":9,"rows_kept":14,"merged":[[0,0,0,8],[1,0,1,8],[2,0,2,8]]}
["Price List \nM2002 Child Safety Seats - NASPO ValuePoint Master Agreement\n              "]
["Longhouse Inventory Solutions (LIS)"]
["Category 1 Forward Facing Seats Price List"]
["Item Number or Product ID Number","Product Name/Title","Item Sub-Category: Combination, Convertible WITH harness threading required, or Convertible WITH NO harness rethreading required ","Manufacturer's Name or Brand Name \n ","List Price \n","Percentage (%) Discount\n","Net Price","Delivery Days After Receipt of Order (ARO) ","Volume Discounts"]
[]
["CC341FWM","Scenera Next Convertible - Factory Select","Convertible WITH Harness - no rethreading required","Cosco","108.87","6.87967%",{"$f":"E6-(E6*F6)","v":{"v":101.38010327100001,"d":"101.38"}},"5-10 days ARO expected delivery but guarantee less than 30 days per Scope of Work"]
["CS200312198","SureRide Titan 65 Convertible - 2 PACK - Factory Select Colorway","Convertible WITH Harness - may require rethreading","Evenflo","285.66","13.23284",247.86,"5-10 days ARO expected delivery but guarantee less than 30 days per Scope of Work"]
[3812198,"Tribute 5 Convertible Seat - 2 PACK","Convertible WITH Harness - no rethreading required","Evenflo","219.53","8.31542%",{"$f":"E8-(E8*F8)","v":{"v":201.275158474,"d":"201.28"}},"5-10 days ARO expected delivery but guarantee less than 30 days per Scope of Work"]
["CC405GZD","Easy Elite 3 in 1 - Grey Glyphs","3 in 1 WITH Harness - no rethreading required","Cosco","148.87","3.3519%",{"v":143.88002647000002,"d":"143.88"},"5-10 days ARO expected delivery but guarantee less than 30 days per Scope of Work"]
["CC409HMY","Grow N Go All in 1 - Black Phantom","All in 1 WITH Harness - no rethreading required","Safety 1st","226.92","6.53424%",{"v":212.092502592,"d":"212.09"},"5-10 days ARO expected delivery but guarantee less than 30 days per Scope of Work"]
["CC412GLA","Grow N Go Extend N Ride LX  - Mine Shaft","All in 1 WITH Harness - no rethreading required","Safety 1st","276.92","18.7969%",{"v":224.86762452000002,"d":"224.87"},"5-10 days ARO expected delivery but guarantee less than 30 days per Scope of Work"]
["CC408HMG","Trimate All-in-One  - Sharkskin colorway","All in One - no rethreading of harness","Safety 1st","216.92","10.9441%",{"v":193.18005828,"d":"193.18"},"5-10 days ARO expected delivery but guarantee less than 30 days per Scope of Work"]
["CC419HMS","Everslim DLX All-in-One - Office Space colorway","All in One - no rethreading of harness","Safety 1st","296.95","8.20496%",{"v":272.58537128,"d":"272.59"},"5-10 days ARO expected delivery but guarantee less than 30 days per Scope of Work"]
["CC423HLV","Turn and Go 360 DLX All-in-One - Stonington colorway","All in One - Rotating - no rethreading of harness","Safety 1st","388.65","15.757%",{"v":327.4104195,"d":"327.41"},"5-10 days ARO expected delivery but guarantee less than 30 days per Scope of Work"]

{"sheet":"Cat 2 - Rear Price List","index":1,"n_rows":17,"n_cols":9,"rows_kept":17,"merged":[[0,0,0,8],[1,0,1,8],[2,0,2,8]]}
["Price List \nM2002 Child Safety Seats - NASPO ValuePoint Master Agreement\n              "]
["Longhouse Inventory Solutions (LIS)"]
["Category 2 Rear Facing Only Price List"]
["Item Number or Product ID Number","Product Name/Title ","Item Sub-Category: Rear Facing Infant Seat ","Brand Name or Manufacturer's Name \n ","List Price\n","Percentage (%) Discount\n","Net Price ","Delivery Days After Receipt of Order (ARO)","Volume Discounts"]
[]
["IC379HLW","onBoard LT Infant - Monument 4","Rear Facing Infant Seats","Safety 1st","170.31","14.0937%",{"$f":"E6-(E6*F6)","v":{"v":146.30701953,"d":"146.31"}},"5-10 days ARO expected delivery but guarantee less than 30 days per Scope of Work"]
["IC390HFY","onBoard Insta-LATCH DLX Infant Car Seat","Rear Facing Infant Seats","Safety 1st","233.87","16.0303%",{"v":196.37993739,"d":"196.38"},"5-10 days ARO expected delivery but guarantee less than 30 days per Scope of Work"]
["CS100211198","Nuture Max Infant Seat","Rear Facing Infant Seats","Evenflo","110.27","9.41082%",{"v":99.892688786,"d":"99.89"},"5-10 days ARO expected delivery but guarantee less than 30 days per Scope of Work"]
["CC341FWM","Scenera Next Convertible - Factory Select","Convertible WITH Harness - no rethreading required","Cosco","108.87","6.87967%",{"$f":"E9-(E9*F9)","v":{"v":101.38010327100001,"d":"101.38"}},"5-10 days ARO expected delivery but guarantee less than 30 days per Scope of Work"]
["CS200312198","SureRide Titan 65 Convertible - 2 PACK - Factory Select Colorway","Convertible WITH Harness - may require rethreading","Evenflo","285.66","13.23284",247.86,"5-10 days ARO expected delivery but guarantee less than 30 days per Scope of Work"]
[3812198,"Tribute 5 Convertible Seat - 2 PACK","Convertible WITH Harness - no rethreading required","Evenflo","219.53","8.31542%",{"v":201.275158474,"d":"201.28"},"5-10 days ARO expected delivery but guarantee less than 30 days per Scope of Work"]
["CC405GZD","Easy Elite 3 in 1 - Grey Glyphs","3 in 1 WITH Harness - no rethreading required","Cosco","148.87","3.3519%",{"v":143.88002647000002,"d":"143.88"},"5-10 days ARO expected delivery but guarantee less than 30 days per Scope of Work"]
["CC409HMY","Grow N Go All in 1 - Black Phantom","All in 1 WITH Harness - no rethreading required","Safety 1st","226.92","6.53424%",{"v":212.092502592,"d":"212.09"},"5-10 days ARO expected delivery but guarantee less than 30 days per Scope of Work"]
["CC412GLA","Grow N Go Extend N Ride LX  - Mine Shaft","All in 1 WITH Harness - no rethreading required","Safety 1st","276.92","18.7969%",{"v":224.86762452000002,"d":"224.87"},"5-10 days ARO expected delivery but guarantee less than 30 days per Scope of Work"]
["CC408HMG","Trimate All-in-One  - Sharkskin colorway","All in One - no rethreading of harness","Safety 1st","216.92","10.9441%",{"v":193.18005828,"d":"193.18"},"5-10 days ARO expected delivery but guarantee less than 30 days per Scope of Work"]
["CC419HMS","Everslim DLX All-in-One - Office Space colorway","All in One - no rethreading of harness","Safety 1st","296.95","8.20496%",{"v":272.58537128,"d":"272.59"},"5-10 days ARO expected delivery but guarantee less than 30 days per Scope of Work"]
["CC423HLV","Turn and Go 360 DLX All-in-One - Stonington colorway","All in One - Rotating - no rethreading of harness","Safety 1st","388.65","15.757%",{"v":327.4104195,"d":"327.41"},"5-10 days ARO expected delivery but guarantee less than 30 days per Scope of Work"]

{"sheet":"Cat 3 - Booster Price List","index":2,"n_rows":13,"n_cols":9,"rows_kept":13,"merged":[[0,0,0,8],[1,0,1,8],[2,0,2,8]]}
["Price List \nM2002 Child Safety Seats - NASPO ValuePoint Master Agreement\n              "]
["Longhouse Inventory Solutions  (LIS)"]
["Category 3 Booster Price List"]
["Item Number or Product ID Number ","Product Name/Title ","Item Sub-Category: Backless Booster,  High-Back Booster, or High-Back Booster WITH removable back ","Brand Name or Manufacturer's Name \n ","List Price \n","Percentage (%) Discount \n","Net Price ","Delivery Days After Receipt of Order (ARO)","Volume Discounts "]
[]
["BC030BJD","Top Side Belt Positioning Booster - Leo","Backless Booster","Cosco","43.90","8.12156%",{"$f":"E6-(E6*F6)","v":{"v":40.33463516,"d":"40.33"}},"5-10 days ARO expected delivery but guarantee less than 30 days per Scope of Work"]
["BC033FWM","Pronto Belt Positioning Booster - Black Fox","High Back Booster with Removable Back","Cosco","80.26","15.5628%",{"v":67.76929672,"d":"67.77"},"5-10 days ARO expected delivery but guarantee less than 30 days per Scope of Work"]
["BC206FWM","Finale 2-in-1 Combination Belt Positioning Booster - Black Fox","High-back Booster","Cosco","127.83","8.206471%",{"v":117.3396681207,"d":"117.34"},"5-10 days ARO expected delivery but guarantee less than 30 days per Scope of Work"]
["BC208EZA","Grand 2-in-1 Combination Booster - Black Sparrow","High-back Booster","Safety 1st","126.46","5.0013%",{"v":120.13535601999999,"d":"120.14"},"5-10 days ARO expected delivery but guarantee less than 30 days per Scope of Work"]
["BC191HJK","Boost-and-Go 3-in-1 Harness Booster - Club Navy colorway","High Back Booster with Removable Back","Safety 1st","159.83","1.16689%",{"v":157.964959713,"d":"157.96"},"5-10 days ARO expected delivery but guarantee less than 30 days per Scope of Work"]
["CS500412198","SecureKid Convertible Booster - 2 PACK - Factory Select colorway","High-back Booster","Evenflo","330.83","13.8303%",258.08,"5-10 days ARO expected delivery but guarantee less than 30 days per Scope of Work"]
[3502198,"Go Time High Back Booster -    2 PACK","High Back Booster with Removable Back","EvenFlo","166.91","3.447%",{"v":161.1566123,"d":"161.16"},"5-10 days ARO expected delivery but guarantee less than 30 days per Scope of Work"]
[3544198,"Go Time No Back Booster - 4 PACK","No Back Booster","EvenFlo","158.62","7.256%",{"v":147.11053280000002,"d":"147.11"},"5-10 days ARO expected delivery but guarantee less than 30 days per Scope of Work"]

{"sheet":"Cat 4 - Special Price List","index":3,"n_rows":10,"n_cols":9,"rows_kept":10,"merged":[[0,0,0,8],[1,0,1,8],[2,0,2,8]]}
["Price List \nM2002 Child Safety Seats - NASPO ValuePoint Master Agreement\n              "]
["Longhouse Inventory Solutions  (LIS)"]
["Category 4 Special Needs Price List"]
["Item Number or Product ID Number ","Product Name/Title ","Item Sub-Category: Infant Car Bed, Child Safety Seat 22lbs to 100lbs, Safety Vests, Adjustable Vests, Push Button Vests ","Brand Name or Manufacturer's Name \n ","List Price\n","Percentage (%) Discount\n","Net Price ","Delivery Days After Receipt of Order (ARO)","Volume Discounts "]
[]
["IC238LTG","Dreamride LATCH Infant Car Bed","Infant Car Bed","Safety 1st","230.72","41.7184%",{"$f":"E6-(E6*F6)","v":{"v":134.46730752000002,"d":"134.47"}},"5-10 days ARO expected delivery but guarantee less than 30 days per Scope of Work"]
["JD14001BLG","Ride Safer - Gen 5 Travel Vest Delight with tether - XS Black","Adjustable Travel Vest","Ride Safer","199.99","25%",{"v":149.9925,"d":"149.99"},"5-10 days ARO expected delivery but guarantee less than 30 days per Scope of Work"]
["JD14101BLG","Ride Safer - Gen 5 Travel Vest Delight with tether - S Black","Adjustable Travel Vest","Ride Safer","209.99","25%",{"v":157.4925,"d":"157.49"},"5-10 days ARO expected delivery but guarantee less than 30 days per Scope of Work"]
["JD14201BLG","Ride Safer - Gen 5 Travel Vest Delight with tether - L Black","Adjustable Travel Vest","Ride Safer","219.99","25%",{"v":164.9925,"d":"164.99"},"5-10 days ARO expected delivery but guarantee less than 30 days per Scope of Work"]
["JD14301BLG","Ride Safer - Gen 5 Travel Vest Delight with tether - XL Black","Adjustable Travel Vest","Ride Safer","259.99","25%",{"v":194.9925,"d":"194.99"},"5-10 days ARO expected delivery but guarantee less than 30 days per Scope of Work"]

{"sheet":"Cat 5 - Optional Price List","index":4,"n_rows":6,"n_cols":9,"rows_kept":6,"merged":[[0,0,0,8],[1,0,1,8],[2,0,2,8]]}
["Price List \nM2002 Child Safety Seats - NASPO ValuePoint Master Agreement\n              "]
["Longhouse Inventory Solutions  (LIS)"]
["Category 5 Optional/Additional Offerings Price List"]
["Item Number or Product ID Number ","Product Name/Title ","Item Sub-Category: Various","Brand Name or Manufacturer's Name \n ","List Price \n","Percentage (%) Discount\n","Net Price ","Delivery Days After Receipt of Order (ARO)","Volume Discounts"]
[]
["CC423HLV","Turn and Go 360 DLX All-in-One - Stonington colorway","All in One - Rotating - no rethreading of harness","Safety 1st","388.65","15.757%",{"$f":"E6-(E6*F6)","v":{"v":327.4104195,"d":"327.41"}},"5-10 days ARO expected delivery but guarantee less than 30 days per Scope of Work"]